fUSD/lending_fUSD_20241216
["ID","MTS","AMOUNT","RATE_DAILY","PERIOD"]
[345549788,1734330643377,-1000.0,0.00022498,30]
[345549789,1734330643386,-500.0,0.00022498,3]
[345549790,1734330643395,-500.0,0.00022498,3]
[345549791,1734330643404,-500.0,0.00022498,3]
[345549792,1734330643414,-151.0,0.00022498,7]
[345549793,1734330643423,-475.0,0.00022498,3]
[345549794,1734330643435,-151.0,0.00022498,7]
[345549796,1734330643444,-500.0,0.00022498,3]
[345549798,1734330643453,-500.0,0.00022498,3]
[345549800,1734330643463,-500.0,0.00022498,3]
[345549802,1734330643472,-439.1083647,0.00022498,3]
[345549804,1734330643481,-151.0,0.00022498,7]
[345549806,1734330643490,-500.0,0.00022498,3]
[345549808,1734330643499,-588.00651574,0.00022498,3]
[345549810,1734330643508,-500.0,0.00022498,3]
[345549811,1734330643517,-500.0,0.00022498,3]
[345549813,1734330643526,-500.0,0.00022498,3]
[345549815,1734330643535,-500.0,0.00022498,3]
[345549818,1734330643545,-500.0,0.00022498,3]
[345549820,1734330643555,-500.0,0.00022498,3]
[345549822,1734330643564,-500.0,0.00022498,3]
[345549823,1734330643574,-222.6985681,0.00022498,3]
[345549825,1734330643584,-500.0,0.00022498,3]
[345549827,1734330643593,-500.0,0.00022498,3]
[345549829,1734330643602,-151.0,0.00022498,7]
[345549831,1734330643611,-425.6,0.00022498,3]
[345549833,1734330643620,-500.0,0.00022498,3]
[345549835,1734330643629,-500.0,0.00022498,3]
[345549837,1734330643638,-500.0,0.00022498,3]
[345549839,1734330643648,-500.0,0.00022498,3]
[345549841,1734330643657,-3000.0,0.00022498,2]
[345549843,1734330643667,-499.46,0.00022498,2]
[345549845,1734330643676,-150.0,0.00022499,2]
[345549847,1734330643685,-2000.0,0.00022499,2]
[345549849,1734330643693,-2000.0,0.00022499,2]
[345549851,1734330643703,-2000.0,0.00022499,2]
[345549853,1734330643712,-2000.0,0.00022499,2]
[345549855,1734330643721,-150.0,0.00022499,2]
[345549857,1734330643730,-1847.3707,0.00022499,2]
[345549859,1734330643739,-629.98622337,0.00022499,3]
[345549861,1734330643748,-151.0,0.00022499,7]
[345549863,1734330643757,-500.0,0.00022499,3]
[345549865,1734330643767,-504.13460567,0.00022499,3]
[345549867,1734330643776,-500.0,0.00022499,3]
[345549869,1734330643785,-500.0,0.00022499,3]
[345549871,1734330643794,-154.771167,0.00022499,7]
[345549873,1734330643803,-500.0,0.00022499,3]
[345549875,1734330643813,-261.66040782,0.00022499,3]
[345549877,1734330643822,-500.0,0.00022499,3]
[345549879,1734330643831,-500.0,0.00022499,3]
[345549881,1734330643840,-505.31174359,0.00022499,3]
[345549883,1734330643849,-500.0,0.00022499,3]
[345549885,1734330643860,-5000.0,0.00022499,20]
[345549887,1734330643869,-500.0,0.00022499,3]
[345549889,1734330643878,-516.48,0.00022499,3]
[345549891,1734330643887,-501.99737256,0.00022499,3]
[345549893,1734330643896,-535.62,0.00022499,3]
[345549894,1734330643905,-316.77,0.00022499,3]
[345549896,1734330643914,-500.0,0.00022499,3]
[345549899,1734330643923,-500.0,0.00022499,3]
[345549900,1734330643934,-500.0,0.00022499,3]
[345549902,1734330643943,-500.0,0.00022499,3]
[345549903,1734330643952,-165.78,0.00022499,3]
[345549905,1734330643962,-499.18532561,0.00022499,3]
[345549907,1734330643970,-515.21473004,0.00022499,3]
[345549909,1734330643979,-500.0,0.00022499,3]
[345549911,1734330643989,-500.0,0.00022499,3]
[345549913,1734330643998,-499.27601105,0.00022499,3]
[345549915,1734330644007,-505.74124963,0.00022499,3]
[345549917,1734330644016,-500.0,0.00022499,3]
[345549919,1734330644025,-500.0,0.00022499,3]
[345549921,1734330644035,-502.55293709,0.00022499,3]
[345549922,1734330644044,-151.0,0.00022499,7]
[345549924,1734330644052,-500.0,0.00022499,3]
[345549926,1734330644064,-500.0,0.00022499,3]
[345549928,1734330644074,-500.0,0.00022499,3]
[345549929,1734330644083,-500.0,0.00022499,3]
[345549930,1734330644092,-500.0,0.00022499,3]
[345549931,1734330644101,-500.0,0.00022499,3]
[345549932,1734330644111,-155.04,0.00022499,3]
[345549933,1734330644120,-475.0,0.00022499,3]
[345549934,1734330644129,-500.0,0.00022499,3]
[345549935,1734330644139,-161.55096685,0.00022499,3]
[345549936,1734330644148,-379.61585876,0.00022499,3]
[345549937,1734330644157,-151.517131,0.00022499,7]
[345549938,1734330644166,-504.43853516,0.00022499,3]
[345549939,1734330644177,-152.176174,0.00022499,7]
[345549940,1734330644185,-500.0,0.00022499,3]
[345549941,1734330644195,-500.0,0.00022499,2]
[345549942,1734330644204,-668.68,0.00022499,3]
[345549943,1734330644213,-668.68,0.00022499,3]
[345549944,1734330644222,-668.68,0.00022499,3]
[345549945,1734330644231,-668.68,0.00022499,3]
[345549946,1734330644240,-668.68,0.00022499,3]
[345549947,1734330644249,-668.68,0.00022499,3]
[345549948,1734330644258,-668.68,0.00022499,3]
[345549949,1734330644267,-668.68,0.00022499,3]
[345549950,1734330644276,-668.68,0.00022499,3]
[345549951,1734330644285,-668.68,0.00022499,3]
[345549952,1734330644294,-668.68,0.00022499,3]
[345549953,1734330644303,-668.68,0.00022499,3]
[345549954,1734330644312,-668.68,0.00022499,3]
[345549955,1734330644322,-668.68,0.00022499,3]
[345549956,1734330644331,-668.68,0.00022499,3]
[345549957,1734330644341,-668.68,0.00022499,3]
[345549959,1734330644350,-668.68,0.00022499,3]
[345549960,1734330644359,-668.68,0.00022499,3]
[345549961,1734330644369,-668.68,0.00022499,3]
[345549962,1734330644378,-668.81037456,0.00022499,3]
[345549963,1734330644387,-500.0,0.00022499,3]
[345549964,1734330644396,-348.24,0.00022499,3]
[345549965,1734330644406,-557.95,0.00022499,3]
[345549966,1734330644415,-557.95,0.00022499,3]
[345549967,1734330644425,-557.95,0.00022499,3]
[345549968,1734330644435,-557.95,0.00022499,3]
[345549969,1734330644444,-557.95,0.00022499,3]
[345549970,1734330644454,-557.95,0.00022499,3]
[345549971,1734330644463,-557.95,0.00022499,3]
[345549973,1734330644471,-557.95,0.00022499,3]
[345549974,1734330644480,-557.95,0.00022499,3]
[345549975,1734330644489,-557.95,0.00022499,3]
[345549976,1734330644498,-557.95,0.00022499,3]
[345549977,1734330644507,-557.95,0.00022499,3]
[345549978,1734330644517,-557.95,0.00022499,3]
[345549979,1734330644526,-557.95,0.00022499,3]
[345549980,1734330644535,-557.95,0.00022499,3]
[345549981,1734330644545,-557.95,0.00022499,3]
[345549982,1734330644555,-557.95,0.00022499,3]
[345549983,1734330644564,-557.95,0.00022499,3]
[345549984,1734330644574,-557.95,0.00022499,3]
[345549985,1734330644584,-500.0,0.00022499,3]
[345549986,1734330644593,-237.96277342,0.00022499,3]
[345549987,1734330644602,-500.0,0.00022499,3]
[345549988,1734330644612,-500.0,0.00022499,3]
[345549989,1734330644621,-500.0,0.00022499,3]
[345549990,1734330644631,-500.0,0.00022499,3]
[345549991,1734330644640,-568.36070355,0.00022499,3]
[345549992,1734330644650,-339.0,0.00022499,3]
[345549993,1734330644659,-250.28,0.00022499,3]
[345549994,1734330644669,-169.08,0.00022499,3]
[345549995,1734330644680,-1000.0,0.00022499,30]
[345549996,1734330644690,-1000.0,0.00022499,30]
[345549997,1734330644699,-1000.0,0.00022499,30]
[345549998,1734330644708,-1000.0,0.00022499,30]
[345549999,1734330644718,-1000.0,0.00022499,30]
[345550000,1734330644727,-1000.0,0.00022499,30]
[345550001,1734330644736,-1030.72,0.00022499,30]
[345550002,1734330644746,-151.0,0.00022499,7]
[345550003,1734330644756,-151.0,0.00022499,7]
[345550004,1734330644765,-151.0,0.00022499,7]
[345550005,1734330644775,-177.264978,0.00022499,7]
[345550006,1734330644784,-1000.0,0.00022499,2]
[345550007,1734330644794,-1000.0,0.00022499,2]
[345550008,1734330644804,-1000.0,0.00022499,2]
[345550009,1734330644813,-1000.0,0.00022499,2]
[345550010,1734330644822,-1000.0,0.00022499,2]
[345550011,1734330644832,-1000.0,0.00022499,2]
[345550012,1734330644842,-1000.0,0.00022499,2]
[345550013,1734330644852,-205.49144567,0.00022499,3]
[345550014,1734330644861,-500.0,0.00022499,3]
[345550015,1734330644870,-500.0,0.00022499,3]
[345550016,1734330644879,-476.36409296,0.00022499,3]
[345550017,1734330644888,-500.0,0.00022499,3]
[345550018,1734330644898,-500.0,0.00022499,3]
[345550019,1734330644907,-500.0,0.00022499,3]
[345550020,1734330644916,-500.0,0.00022499,3]
[345550021,1734330644927,-500.0,0.00022499,3]
[345550022,1734330644937,-500.0,0.00022499,3]
[345550023,1734330644947,-500.0,0.00022499,3]
[345550024,1734330644956,-175.12,0.00022499,3]
[345550025,1734330644967,-500.0,0.00022499,3]
[345550026,1734330644977,-500.0,0.00022499,3]
[345550027,1734330644987,-460.2,0.00022499,3]
[345550028,1734330644996,-395.05081511,0.00022499,3]
[345550029,1734330645006,-997.83,0.00022499,3]
[345550030,1734330645015,-997.83,0.00022499,3]
[345550031,1734330645024,-997.83,0.00022499,3]
[345550032,1734330645033,-997.83,0.00022499,3]
[345550033,1734330645042,-997.83,0.00022499,3]
[345550034,1734330645051,-997.83,0.00022499,3]
[345550035,1734330645060,-997.83,0.00022499,3]
[345550036,1734330645075,-997.83,0.00022499,3]
[345550037,1734330645084,-997.83,0.00022499,3]
[345550038,1734330645094,-997.83,0.00022499,3]
[345550039,1734330645103,-997.83,0.00022499,3]
[345550040,1734330645113,-997.83,0.00022499,3]
[345550041,1734330645122,-997.83,0.00022499,3]
[345550042,1734330645132,-997.83,0.00022499,3]
[345550043,1734330645144,-997.83,0.00022499,3]
[345550044,1734330645153,-997.83,0.00022499,3]
[345550045,1734330645162,-997.91,0.00022499,3]
[345550046,1734330645171,-151.0,0.00022499,7]
[345550047,1734330645181,-235.313522,0.00022499,7]
[345550048,1734330645190,-500.0,0.00022499,3]
[345550049,1734330645199,-500.0,0.00022499,3]
[345550050,1734330645208,-500.0,0.00022499,3]
[345550051,1734330645217,-500.0,0.00022499,3]
[345550052,1734330645226,-500.0,0.00022499,3]
[345550053,1734330645235,-651.89,0.00022499,3]
[345550054,1734330645244,-651.89,0.00022499,3]
[345550055,1734330645253,-651.89,0.00022499,3]
[345550056,1734330645262,-651.89,0.00022499,3]
[345550057,1734330645271,-651.89,0.00022499,3]
[345550058,1734330645280,-651.89,0.00022499,3]
[345550059,1734330645289,-651.89,0.00022499,3]
[345550060,1734330645299,-651.89,0.00022499,3]
[345550061,1734330645308,-651.89,0.00022499,3]
[345550062,1734330645317,-651.89,0.00022499,3]
[345550063,1734330645326,-651.89,0.00022499,3]
[345550064,1734330645335,-651.89,0.00022499,3]
[345550065,1734330645345,-651.89,0.00022499,3]
[345550066,1734330645355,-651.89,0.00022499,3]
[345550067,1734330645364,-651.89,0.00022499,3]
[345550068,1734330645373,-651.89,0.00022499,3]
[345550069,1734330645382,-651.91,0.00022499,3]
[345550070,1734330645392,-300.0,0.00022499,3]
[345550071,1734330645401,-300.0,0.00022499,3]
[345550072,1734330645411,-300.0,0.00022499,3]
[345550073,1734330645420,-151.0,0.00022499,7]
[345550074,1734330645431,-500.0,0.00022499,3]
[345550075,1734330645440,-300.48254,0.00022499,7]
[345550076,1734330645449,-480.0,0.00022499,3]
[345550077,1734330645459,-500.0,0.00022499,3]
[345550078,1734330645468,-500.0,0.00022499,3]
[345550079,1734330645592,-500.0,0.00022499,3]
[345550080,1734330645602,-500.0,0.00022499,3]
[345550081,1734330645611,-500.0,0.00022499,3]
[345550082,1734330645621,-500.0,0.00022499,3]
[345550083,1734330645630,-500.0,0.00022499,3]
[345550084,1734330645639,-500.0,0.00022499,3]
[345550085,1734330645649,-500.0,0.00022499,3]
[345550086,1734330645658,-500.0,0.00022499,3]
[345550087,1734330645667,-500.0,0.00022499,3]
[345550088,1734330645677,-500.0,0.00022499,3]
[345550089,1734330645687,-500.0,0.00022499,3]
[345550090,1734330645698,-500.0,0.00022499,3]
[345550091,1734330645708,-500.0,0.00022499,3]
[345550092,1734330645717,-500.0,0.00022499,3]
[345550093,1734330645726,-500.0,0.00022499,3]
[345550094,1734330645736,-288.12,0.00022499,3]
[345550095,1734330645745,-500.0,0.00022499,3]
[345550096,1734330645755,-500.0,0.00022499,3]
[345550097,1734330645764,-500.0,0.00022499,3]
[345550098,1734330645773,-500.0,0.00022499,3]
[345550099,1734330645783,-509.13264118,0.00022499,3]
[345550100,1734330645793,-522847.35555273,0.000225,4]
[345550101,1734330645802,-855.59551609,0.000225,2]
[345550102,1734330645811,-91830.87205982,0.000225,2]
[345550103,1734330645821,-3885309.41814041,0.000225,2]
[345550104,1734330645830,-217.0,0.000225,2]
[345550105,1734330645840,-214.0,0.000225,2]
[345550106,1734330645848,-202.4,0.000225,2]
[345550107,1734330645858,-201.0,0.000225,2]
[345550108,1734330645867,-206.0,0.000225,2]
[345550109,1734330645876,-206.0,0.000225,2]
[345550110,1734330645885,-201.0,0.000225,2]
[345550111,1734330645894,-202.0,0.000225,2]
[345550112,1734330645903,-205.0,0.000225,2]
[345550113,1734330645912,-212.0,0.000225,2]
[345550114,1734330645921,-205.0,0.000225,2]
[345550115,1734330645933,-205.0,0.000225,2]
[345550116,1734330645942,-201.0,0.000225,2]
[345550117,1734330645952,-211.0,0.000225,2]
[345550118,1734330645962,-211.0,0.000225,2]
[345550119,1734330645972,-207.0,0.000225,2]
[345550120,1734330645981,-207.0,0.000225,2]
[345550121,1734330645990,-150.0,0.000225,2]
[345550122,1734330645999,-2049.18,0.000225,2]
[345550123,1734330646009,-500.0,0.000225,2]
[345550124,1734330646018,-2900.0,0.000225,15]
[345550125,1734330646027,-500.0,0.000225,2]
[345550126,1734330646036,-513.579,0.000225,2]
[345550127,1734330646046,-266.0,0.000225,2]
[345550128,1734330646055,-264.0,0.000225,2]
[345550129,1734330646066,-266.0,0.000225,2]
[345550130,1734330646075,-2561.07695254,0.000225,2]
[345550131,1734330646084,-236.0,0.000225,2]
[345550132,1734330646093,-1510.0,0.000225,2]
[345550133,1734330646102,-789.13925566,0.000225,2]
[345550134,1734330646113,-411.0,0.000225,10]
[345550136,1734330646122,-294.0,0.000225,2]
[345550137,1734330646131,-209.0,0.000225,2]
[345550139,1734330646141,-640.41,0.000225,2]
[345550141,1734330646151,-151.0,0.000225,7]
[345550143,1734330646160,-151.400604,0.000225,7]
[345550145,1734330646169,-178.039708,0.000225,7]
[345550147,1734330646182,-151.0,0.000225,7]
[345550149,1734330646191,-151.0,0.000225,7]
[345550151,1734330646200,-33884.77173823,0.000225,2]
[345550153,1734330646210,-158.0,0.000225,7]
[345550155,1734330646219,-230.0,0.000225,2]
[345550157,1734330646228,-1095.6275,0.000225,2]
[345550159,1734330646237,-1095.6275,0.000225,2]
[345550161,1734330646246,-972.6,0.000225,2]
[345550163,1734330646255,-150.0,0.000225,2]
[345550165,1734330646264,-800.0,0.000225,8]
[345550167,1734330646273,-800.0,0.000225,8]
[345550169,1734330646282,-800.0,0.000225,8]
[345550171,1734330646291,-800.0,0.000225,8]
[345550173,1734330646300,-800.0,0.000225,8]
[345550175,1734330646309,-803.07647774,0.000225,8]
[345550177,1734330646319,-800.0,0.000225,8]
[345550179,1734330646328,-800.0,0.000225,8]
[345550181,1734330646337,-800.0,0.000225,8]
[345550183,1734330646346,-800.0,0.000225,8]
[345550185,1734330646355,-800.0,0.000225,8]
[345550187,1734330646365,-800.0,0.000225,8]
[345550189,1734330646374,-404.33,0.00022508,2]
[345550190,1734330646384,-762.72,0.00022508,7]
[345550191,1734330646393,-762.72,0.00022508,7]
[345550192,1734330646402,-169.21,0.00022527,2]
[345550193,1734330646410,-2000.0,0.00022529,2]
[345550194,1734330646420,-557.95,0.00022529,3]
[345550195,1734330646431,-557.95,0.00022529,3]
[345550196,1734330646440,-557.95,0.00022529,3]
[345550197,1734330646450,-557.95,0.00022529,3]
[345550198,1734330646459,-558.09631334,0.00022529,3]
[345550199,1734330646468,-151.0,0.0002253,7]
[345550200,1734330646477,-151.0,0.0002253,7]
[345550201,1734330646487,-151.0,0.0002253,7]
[345550202,1734330646496,-20000.0,0.0002253,5]
[345550203,1734330646505,-4701.98708309,0.0002253,5]
[345550204,1734330646514,-20000.0,0.0002253,5]
[345550205,1734330646523,-25000.0,0.0002253,5]
[345550206,1734330646532,-20000.0,0.0002253,5]
[345550207,1734330646542,-20000.0,0.0002253,5]
[345550208,1734330646551,-25000.0,0.0002253,5]
[345550209,1734330646560,-20000.0,0.0002253,5]
[345550210,1734330646569,-20000.0,0.0002253,5]
[345550211,1734330646578,-25000.0,0.0002253,5]
[345550212,1734330646587,-20000.0,0.0002253,5]
[345550213,1734330646596,-25000.0,0.0002253,5]
[345550214,1734330646605,-20000.0,0.0002253,5]
[345550215,1734330646614,-20000.0,0.0002253,5]
[345550216,1734330646624,-8087.67701997,0.0002253,5]
[345550217,1734330646634,-5816.29334806,0.0002253,5]
[345550218,1734330646643,-150.0,0.00022531,120]
[345550219,1734330646652,-869.8,0.00022548,2]
[345550220,1734330646661,-1000.0,0.00022564,2]
[345550221,1734330646671,-578.45747987,0.00022588,2]
[345550222,1734330646682,-207.0,0.0002259,2]
[345550223,1734330646691,-732.88,0.00022603,2]
[345550224,1734330646700,-152.39559366,0.00022636,2]
[345550225,1734330646708,-500.0,0.00022636,2]
[345550226,1734330646717,-217.0,0.0002264,2]
[345550227,1734330646726,-205.0,0.0002264,2]
[345550228,1734330646735,-212.0,0.0002264,2]
[345550229,1734330646744,-201.0,0.0002266,2]
[345550230,1734330646754,-294.0,0.0002266,2]
[345550231,1734330646763,-209.0,0.0002266,2]
[345550232,1734330646773,-1239.20571,0.00022688,7]
[345550233,1734330646782,-150.0,0.00022699,120]
[345550234,1734330646791,-200.0,0.00022723,2]
[345550235,1734330646800,-1510.0,0.00022725,2]
[345550236,1734330646810,-500.0,0.00022773,2]
[345550237,1734330646819,-150.0,0.00022774,2]
[345550238,1734330646829,-762.72,0.00022781,7]
[345550239,1734330646839,-762.72,0.00022781,7]
[345550240,1734330646848,-829.15,0.00022785,2]
[345550241,1734330646858,-155.88,0.00022822,2]
[345550242,1734330646867,-578.45747987,0.00022845,2]
[345550243,1734330646876,-150.0,0.00022848,120]
[345550244,1734330646886,-5918.67266183,0.00022852,7]
[345550245,1734330646896,-500.0,0.0002291,2]
[345550246,1734330646907,-150.0,0.00022918,120]
[345550247,1734330646917,-1510.0,0.0002295,2]
[345550248,1734330646926,-450.0,0.0002297,2]
[345550249,1734330646939,-157.121614,0.00022998,4]
[345550250,1734330646948,-5063.86299679,0.00023,2]
[345550251,1734330646957,-1088.9799025,0.00023,2]
[345550252,1734330646967,-418.20966684,0.00023,120]
[345550253,1734330646976,-11000.0,0.00023,2]
[345550254,1734330646985,-453.26873949,0.00023,2]
[345550255,1734330646995,-3600.0,0.00023,24]
[345550256,1734330647004,-34447.0,0.00023,30]
[345550257,1734330647014,-50000.0,0.00023,120]
[345550258,1734330647023,-2000.0,0.00023,120]
[345550259,1734330647033,-80000.0,0.00023,10]
[345550260,1734330647042,-500.0,0.00023,2]
[345550261,1734330647051,-4846.0,0.00023,2]
[345550262,1734330647060,-411.0,0.00023,11]
[345550263,1734330647073,-16000.0,0.00023,30]
[345550264,1734330647082,-267.1478351,0.0002301,2]
[345550265,1734330647091,-173.93363665,0.00023025,2]
[345550266,1734330647100,-500.0,0.00023047,2]
[345550267,1734330647110,-245.95951797,0.00023048,2]
[345550268,1734330647120,-762.72,0.00023055,7]
[345550269,1734330647133,-762.72,0.00023055,7]
[345550270,1734330647143,-1239.20571,0.00023088,7]
[345550271,1734330647153,-150.0,0.0002309,120]
[345550272,1734330647162,-164.72018812,0.00023096,2]
[345550273,1734330647171,-174.121613,0.00023098,8]
[345550274,1734330647184,-578.45747987,0.00023102,2]
[345550275,1734330647194,-652.99377898,0.00023116,2]
[345550276,1734330647203,-150.121614,0.00023128,4]
[345550277,1734330647214,-1510.0,0.00023175,2]
[345550278,1734330647223,-500.0,0.00023184,2]
[345550279,1734330647232,-150.121613,0.00023198,10]
[345550280,1734330647241,-49813.90168061,0.000232,2]
[345550281,1734330647250,-567.16367801,0.0002322,2]
[345550282,1734330647259,-150.121614,0.00023228,8]
[345550283,1734330647268,-1500.0,0.00023287,3]
[345550284,1734330647277,-734.99812102,0.00023287,3]
[345550285,1734330647286,-1239.20571,0.00023288,7]
[345550286,1734330647296,-150.121613,0.00023298,12]
[345550287,1734330647305,-300.0,0.000233,2]
[345550288,1734330647314,-500.0,0.00023321,2]
[345550289,1734330647324,-762.72,0.00023328,7]
[345550290,1734330647333,-762.72,0.00023328,7]
[345550291,1734330647342,-150.121614,0.00023328,10]
[345550292,1734330647352,-150.0,0.00023358,2]
[345550293,1734330647361,-578.45747987,0.00023359,2]
[345550294,1734330647371,-2464.2026659,0.00023385,2]
[345550295,1734330647380,-6593.4501545,0.00023385,2]
[345550296,1734330647390,-150.0,0.00023397,2]
[345550297,1734330647399,-150.121613,0.00023398,4]
[345550298,1734330647408,-165.81316943,0.000234,2]
[345550299,1734330647418,-3000.0,0.0002341,2]
[345550300,1734330647427,-193017.22083904,0.0002341,2]
[345550301,1734330647438,-150.121613,0.00023428,12]
[345550302,1734330647447,-176.5,0.00023432,2]
[345550303,1734330647456,-150.0,0.00023437,120]
[345550304,1734330647466,-150.0,0.0002344,120]
[345550305,1734330647475,-222.121613,0.00023448,4]
[345550306,1734330647484,-500.0,0.00023458,2]
[345550307,1734330647494,-1239.20571,0.00023488,7]
[345550308,1734330647503,-150.121613,0.00023498,8]
[345550309,1734330647512,-138176.0230686,0.000235,2]
[345550310,1734330647521,-105623.44714787,0.000235,2]
[345550311,1734330647530,-125378.62846036,0.000235,2]
[345550312,1734330647539,-411.0,0.000235,11]
[345550313,1734330647549,-150.121613,0.00023528,4]
[345550314,1734330647558,-222.121613,0.00023548,8]
[345550315,1734330647567,-2795.0682648,0.00023594,2]
[345550316,1734330647577,-7478.744966,0.00023594,2]
[345550317,1734330647586,-500.0,0.00023595,2]
[345550318,1734330647595,-222.121615,0.00023598,10]
[345550319,1734330647604,-3000.0,0.000236,2]
[345550320,1734330647614,-762.72,0.00023601,7]
[345550321,1734330647623,-762.72,0.00023601,7]
[345550322,1734330647632,-716909.22470882,0.0002361,7]
[345550323,1734330647641,-578.45747987,0.00023616,2]
[345550324,1734330647650,-150.0,0.00023622,120]
[345550325,1734330647659,-151.477309,0.00023625,31]
[345550326,1734330647668,-222.121615,0.00023628,8]
[345550327,1734330647677,-222.121613,0.00023648,10]
[345550328,1734330647690,-173.93363665,0.0002365,2]
[345550329,1734330647700,-179.787431,0.0002365,2]
[345550330,1734330647709,-238.49601047,0.0002365,2]
[345550331,1734330647718,-4981.66864201,0.0002365,2]
[345550332,1734330647728,-271.01521216,0.0002365,2]
[345550333,1734330647737,-877.18314578,0.0002365,2]
[345550334,1734330647746,-1239.20571,0.00023688,7]
[345550335,1734330647756,-222.121615,0.00023728,10]
[345550336,1734330647765,-500.0,0.00023732,2]
[345550337,1734330647774,-150.0,0.00023742,120]
[345550338,1734330647783,-222.121613,0.00023748,12]
[345550339,1734330647792,-829.15,0.00023776,2]
[345550340,1734330647802,-222.121615,0.00023798,4]
[345550341,1734330647811,-222.121615,0.00023828,12]
[345550342,1734330647820,-150.0,0.00023838,120]
[345550343,1734330647829,-222.121613,0.00023848,4]
[345550344,1734330647839,-152.0,0.0002385,3]
[345550345,1734330647848,-5000.0,0.00023869,20]
[345550346,1734330647857,-627.45238011,0.00023869,2]
[345550347,1734330647866,-578.45747987,0.00023873,2]
[345550348,1734330647876,-762.72,0.00023874,7]
[345550349,1734330647885,-762.72,0.00023874,7]
[345550350,1734330647895,-4013.4744286,0.0002388,120]
[345550351,1734330647904,-222.121615,0.00023898,8]
[345550352,1734330647914,-3125.9338638,0.00023906,2]
[345550353,1734330647923,-8364.0397774,0.00023906,2]
[345550354,1734330647936,-335304.0,0.00023922,2]
[345550355,1734330647945,-222.121615,0.00023928,4]
[345550356,1734330647955,-222.121613,0.00023948,8]
[345550357,1734330647965,-641.552207,0.00023967,2]
[345550358,1734330647974,-164.72018812,0.00023991,2]
[345550359,1734330647983,-222.121615,0.00023998,10]
[345550360,1734330647993,-974.53217315,0.00024,2]
[345550361,1734330648002,-68978.37617986,0.00024,2]
[345550362,1734330648011,-11000.0,0.00024,2]
[345550363,1734330648021,-3600.0,0.00024,25]
[345550364,1734330648030,-500.0,0.00024,30]
[345550365,1734330648040,-500.0,0.00024,30]
[345550366,1734330648050,-500.0,0.00024,30]
[345550367,1734330648060,-500.0,0.00024,30]
[345550368,1734330648072,-500.0,0.00024,30]
[345550369,1734330648081,-500.0,0.00024,30]
[345550370,1734330648091,-500.0,0.00024,30]
[345550371,1734330648100,-500.0,0.00024,30]
[345550372,1734330648111,-500.0,0.00024,30]
[345550373,1734330648120,-500.0,0.00024,30]
[345550374,1734330648130,-500.0,0.00024,30]
[345550375,1734330648140,-500.0,0.00024,30]
[345550376,1734330648148,-500.0,0.00024,30]
[345550377,1734330648158,-500.0,0.00024,30]
[345550378,1734330648167,-900.0,0.00024,30]
[345550379,1734330648176,-500.66289232,0.00024,30]
[345550380,1734330648190,-499.37151351,0.00024,30]
[345550381,1734330648199,-209.2511801,0.00024,30]